[Event "European Womens-ch 2025"]
[Site "Rhodes"]
[Date "2025.04.08"]
[Round "8.64"]
[White "Harutyunyan, Gabriela"]
[Black "Bania, Eleni"]
[Result "1-0"]
[Annotator "NA RC"]
[ECO "B45"]
[WhiteElo "1793"]
[BlackElo "1809"]
[PlyCount "79"]
[EventDate "2025.03.29"]
[EventType "swiss"]
[EventCountry "GRE"]
[SourceTitle "playchess.com"]
[Source "ChessBase"]
[SourceQuality "1"]
[TimeControl "40/5400+30:1800+30"]

1. e4 {[%emt 0:00:17]} c5 {[%emt 0:00:02]} 2. Nf3 {[%emt 0:00:20]} e6 {[%emt 0:00:01]} 3. d4 {[%emt 0:00:08]} cxd4 {[%emt 0:00:02]} 4. Nxd4 {[%emt 0:00:10]} Nf6 {[%emt 0:00:06]} 5. Nc3 {[%emt 0:00:07]} Nc6 {[%emt 0:00:04]} 6. Ndb5 {[%emt 0:00:25]} Bb4 {[%emt 0:00:11]} 7. a3 {[%emt 0:00:06]} Bxc3+ {[%emt 0:00:04]} 8. Nxc3 {[%emt 0:00:07]} d5 {[%emt 0:00:16]} 9. Bd3 {[%emt 0:03:00]} d4 {[%emt 0:08:54]} 10. Ne2 {[%emt 0:00:26]} e5 {[%emt 0:01:04]} 11. h3 {[%emt 0:06:27]} Qe7 {[%emt 0:08:22]} 12. b4 {[%emt 0:14:07]} a6 {[%emt 0:06:01]} 13. O-O {[%emt 0:04:15]} O-O {[%emt 0:02:44]} 14. Ng3 {[%emt 0:03:14]} Be6 {[%emt 0:14:10]} 15. f4 {[%emt 0:09:27]} exf4 {[%emt 0:01:25]} 16. Bxf4 {[%emt 0:00:15]} Nd7 {[%emt 0:03:18]} 17. e5 {[%emt 0:16:58]} Qh4 {[%emt 0:19:49]} 18. Ne4 {[%emt 0:04:09]} h6 {[%emt 0:02:10]} 19. Bg3 {[%emt 0:00:48]} Qe7 {[%emt 0:07:39]} 20. Qh5 {[%emt 0:01:52]} Bd5 {[%emt 0:07:29]} 21. Bh4 {[%emt 0:04:00]} Qe8 {[%emt 0:04:31]} 22. Nf6+ {[%emt 0:03:35]} Nxf6 {[%emt 0:00:02]} 23. exf6 {[%emt 0:05:03]} Qe3+ {[%emt 0:06:35]} 24. Rf2 {[%emt 0:06:06]} Be4 {[%emt 0:00:49]} 25. fxg7 {[%emt 0:00:25]} Kxg7 {[%emt 0:00:13]} 26. Raf1 {[%emt 0:07:38]} Bg6 {[%emt 0:01:29]} 27. Bf6+ {[%emt 0:01:09]} Kh7 {[%emt 0:00:18]} 28. Qg4 {[%emt 0:00:49]} Rg8 {[%emt 0:00:55]} 29. Qd7 {[%emt 0:01:27]} Raf8 {[%emt 0:00:16]} 30. Kh1 {[%emt 0:03:29]} Bxd3 {[%emt 0:03:03]} 31. cxd3 {[%emt 0:00:20]} Ne5 {[%emt 0:02:40]} 32. Bxe5 {[%emt 0:01:01]} Qxe5 {[%emt 0:00:15]} 33. Rxf7+ {[%emt 0:00:45]} Rg7 {[%emt 0:00:40]} 34. Rxg7+ {[%emt 0:01:14]} Qxg7 {[%emt 0:00:05]} 35. Qxg7+ {[%emt 0:00:26]} Kxg7 {[%emt 0:00:02]} 36. Rxf8 {[%emt 0:00:22]} Kxf8 {[%emt 0:00:01]} 37. Kh2 {[%emt 0:00:37]} Ke7 {[%emt 0:00:25]} 38. Kg3 {[%emt 0:00:34]} Kd6 {[%emt 0:00:19]} 39. Kf4 {[%emt 0:00:10]} Kd5 {[%emt 0:00:24]} 40. g4 {[%emt 0:00:00]} 1-0

[Event "European Womens-ch 2025"]
[Site "Rhodes"]
[Date "2025.04.08"]
[Round "8.66"]
[White "Kaka, Rengina Tsampika"]
[Black "Saraci, Ndriqona"]
[Result "1/2-1/2"]
[Annotator "NA RC"]
[ECO "A46"]
[WhiteElo "1509"]
[BlackElo "1692"]
[PlyCount "99"]
[EventDate "2025.03.29"]
[EventType "swiss"]
[EventCountry "GRE"]
[SourceTitle "playchess.com"]
[Source "ChessBase"]
[SourceQuality "1"]
[TimeControl "40/5400+30:1800+30"]

1. d4 {[%emt 0:00:13]} Nf6 {[%emt 0:00:08]} 2. Bf4 {[%emt 0:00:11]} e6 {[%emt 0:00:10]} 3. e3 {[%emt 0:00:10]} c5 {[%emt 0:00:12]} 4. Nf3 {[%emt 0:00:40]} Nc6 {[%emt 0:01:32]} 5. c3 {[%emt 0:00:35]} a6 {[%emt 0:02:17]} 6. a4 {[%emt 0:01:57]} cxd4 {[%emt 0:01:45]} 7. exd4 {[%emt 0:01:48]} Be7 {[%emt 0:04:18]} 8. Bd3 {[%emt 0:01:07]} Qb6 {[%emt 0:02:45]} 9. Qc2 {[%emt 0:01:44]} Nh5 {[%emt 0:07:13]} 10. Bg3 {[%emt 0:01:28]} Nxg3 {[%emt 0:00:21]} 11. hxg3 {[%emt 0:00:41]} h6 {[%emt 0:04:35]} 12. Nbd2 {[%emt 0:02:50]} d5 {[%emt 0:02:04]} 13. O-O {[%emt 0:02:13]} Bd7 {[%emt 0:01:45]} 14. Qb3 {[%emt 0:06:04]} Qc7 {[%emt 0:02:32]} 15. Rfb1 {[%emt 0:02:41]} O-O {[%emt 0:02:18]} 16. Qd1 {[%emt 0:06:31]} a5 {[%emt 0:09:26]} 17. Qe2 {[%emt 0:07:43]} Bd6 {[%emt 0:03:36]} 18. Bb5 {[%emt 0:05:33]} Na7 {[%emt 0:04:24]} 19. Bxd7 {[%emt 0:01:53]} Qxd7 {[%emt 0:00:08]} 20. c4 {[%emt 0:02:18]} Bb4 {[%emt 0:05:20]} 21. Ne5 {[%emt 0:03:34]} Qd8 {[%emt 0:03:51]} 22. cxd5 {[%emt 0:02:02]} Qxd5 {[%emt 0:01:40]} 23. Ndf3 {[%emt 0:01:00]} Rac8 {[%emt 0:02:08]} 24. Rc1 {[%emt 0:02:11]} Rxc1+ {[%emt 0:01:09]} 25. Rxc1 {[%emt 0:03:13]} Qa2 {[%emt 0:00:29]} 26. Rc7 {[%emt 0:02:00]} Qxa4 {[%emt 0:05:57]} 27. Rxb7 {[%emt 0:00:40]} Nc6 {[%emt 0:03:20]} 28. b3 {[%emt 0:04:33]} Qa1+ {[%emt 0:00:43]} 29. Qf1 {[%emt 0:02:48]} Qxf1+ {[%emt 0:02:43]} 30. Kxf1 {[%emt 0:00:11]} Nxe5 {[%emt 0:01:23]} 31. Nxe5 {[%emt 0:01:08]} f6 {[%emt 0:04:27]} 32. Nc6 {[%emt 0:01:58]} Bc3 {[%emt 0:02:53]} 33. Ra7 {[%emt 0:01:10]} Rf7 {[%emt 0:03:15]} 34. Ra6 {[%emt 0:01:45]} Rd7 {[%emt 0:02:46]} 35. Ke2 {[%emt 0:02:34]} Kf7 {[%emt 0:05:28]} 36. f4 {[%emt 0:02:33]} Kg6 {[%emt 0:05:29]} 37. Kf2 {[%emt 0:02:56]} Rb7 {[%emt 0:02:05]} 38. Nxa5 {[%emt 0:02:09]} Bxd4+ {[%emt 0:00:36]} 39. Kf3 {[%emt 0:01:09]} Ra7 {[%emt 0:01:01]} 40. Rxa7 {[%emt 0:00:00]} Bxa7 {[%emt 0:00:00]} 41. Nc6 {[%emt 0:02:51]} Bg1 {[%emt 0:01:41]} 42. b4 {[%emt 0:01:01]} Kf7 {[%emt 0:00:37]} 43. Ke4 {[%emt 0:03:03]} Ke8 {[%emt 0:01:21]} 44. Nd4 {[%emt 0:02:57]} Kd7 {[%emt 0:01:14]} 45. g4 {[%emt 0:02:55]} g5 {[%emt 0:06:24]} 46. f5 {[%emt 0:06:27]} e5 {[%emt 0:02:51]} 47. Ne2 {[%emt 0:02:34]} Bb6 {[%emt 0:01:15]} 48. Kd5 {[%emt 0:00:45]} Bd8 {[%emt 0:05:05]} 49. Nc3 {[%emt 0:02:25]} Be7 {[%emt 0:02:50]} 50. Ne4 {[%emt 0:03:00]} 1/2-1/2